[Event "*** Titled Tuesday Blitz"]
[Site "Chess.com"]
[Date "2018.01.02"]
[Round "4"]
[White "milovanratkovic"]
[Black "IamSchrodingersCat"]
[Result "0-1"]
[WhiteElo "2442"]
[BlackElo "2384"]
[TimeControl "180+2"]
[EndTime "13:53:21 PST"]
[Termination "IamSchrodingersCat won by resignation"]

1. d4 {[%clk 0:03:01.8]} 1... Nf6 {[%clk 0:03:00.3]} 2. Bg5 {[%clk 0:03:02.2]}
2... g6 {[%clk 0:02:58]} 3. Bxf6 {[%clk 0:03:02.2]} 3... exf6 {[%clk 0:02:59.9]}
4. e3 {[%clk 0:03:04]} 4... Bg7 {[%clk 0:03:00.3]} 5. g3 {[%clk 0:03:05]} 5...
O-O {[%clk 0:03:01.8]} 6. Bg2 {[%clk 0:03:06]} 6... d5 {[%clk 0:03:03.4]} 7. Ne2
{[%clk 0:03:07.3]} 7... Be6 {[%clk 0:03:04.3]} 8. O-O {[%clk 0:03:08.6]} 8... c6
{[%clk 0:03:05.8]} 9. Nd2 {[%clk 0:03:07.5]} 9... Nd7 {[%clk 0:03:05.6]} 10. Rc1
{[%clk 0:03:08.1]} 10... Qa5 {[%clk 0:02:48.7]} 11. a3 {[%clk 0:03:07.7]} 11...
Qb6 {[%clk 0:02:45.2]} 12. b3 {[%clk 0:02:53.3]} 12... Qa5 {[%clk 0:02:42.2]}
13. c4 {[%clk 0:02:34.5]} 13... Qxa3 {[%clk 0:02:09.4]} 14. Nf4 {[%clk 0:02:33]}
14... Nb6 {[%clk 0:01:27.1]} 15. Nxe6 {[%clk 0:02:18.9]} 15... fxe6 {[%clk
0:01:27]} 16. e4 {[%clk 0:02:19.9]} 16... f5 {[%clk 0:01:00.2]} 17. cxd5 {[%clk
0:02:12.2]} 17... cxd5 {[%clk 0:00:59.8]} 18. e5 {[%clk 0:02:12.7]} 18... Rfc8
{[%clk 0:00:51.7]} 19. Rxc8+ {[%clk 0:01:43.5]} 19... Rxc8 {[%clk 0:00:53.6]}
20. Nf3 {[%clk 0:01:45]} 20... Bh6 {[%clk 0:00:47.3]} 21. Qd3 {[%clk 0:01:30.7]}
21... Qb4 {[%clk 0:00:37.1]} 22. Ra1 {[%clk 0:01:23.3]} 22... a6 {[%clk
0:00:37.3]} 23. Rb1 {[%clk 0:01:21.4]} 23... Qc3 {[%clk 0:00:32.1]} 24. Qd1
{[%clk 0:01:20.5]} 24... Qc2 {[%clk 0:00:30.3]} 25. Qe1 {[%clk 0:01:18.9]} 25...
Rc3 {[%clk 0:00:21.1]} 26. b4 {[%clk 0:01:10.5]} 26... Nc4 {[%clk 0:00:19.7]}
27. b5 {[%clk 0:01:09.5]} 27... Na3 {[%clk 0:00:12.2]} 28. Ra1 {[%clk
0:00:35.2]} 28... Nxb5 {[%clk 0:00:13.2]} 29. Bf1 {[%clk 0:00:36.1]} 29... Rxf3
{[%clk 0:00:10.4]} 30. Bxb5 {[%clk 0:00:36.5]} 30... axb5 {[%clk 0:00:12.3]} 31.
Ra8+ {[%clk 0:00:37.7]} 31... Bf8 {[%clk 0:00:13.2]} 32. Kg2 {[%clk 0:00:29]}
32... Qe4 {[%clk 0:00:10.7]} 33. Rxf8+ {[%clk 0:00:25.4]} 33... Kxf8 {[%clk
0:00:10.9]} 34. Qb4+ {[%clk 0:00:26.1]} 34... Kf7 {[%clk 0:00:11.7]} 35. Qd6
{[%clk 0:00:26.4]} 35... Rd3+ {[%clk 0:00:08.6]} 36. Kh3 {[%clk 0:00:23.8]}
36... Qg4+ {[%clk 0:00:09.6]} 37. Kg2 {[%clk 0:00:24.8]} 37... Qf3+ {[%clk
0:00:11.1]} 38. Kh3 {[%clk 0:00:25.7]} 38... Qg4+ {[%clk 0:00:10.6]} 39. Kg2
{[%clk 0:00:26.8]} 39... Kg7 {[%clk 0:00:07]} 40. Qe7+ {[%clk 0:00:26.2]} 40...
Kh6 {[%clk 0:00:08.5]} 41. Qf8+ {[%clk 0:00:27.5]} 41... Kh5 {[%clk 0:00:09]}
42. Qg7 {[%clk 0:00:27.1]} 42... h6 {[%clk 0:00:09.2]} 43. Qf6 {[%clk
0:00:24.6]} 43... Rd2 {[%clk 0:00:06.9]} 44. Qxe6 {[%clk 0:00:13.1]} 44... Qe4+
{[%clk 0:00:07.3]} 45. Kh3 {[%clk 0:00:12]} 45... Rxf2 {[%clk 0:00:08.1]} 46.
g4+ {[%clk 0:00:08.3]} 0-1

[Event "*** Titled Tuesday Blitz"]
[Site "Chess.com"]
[Date "2018.01.02"]
[Round "4"]
[White "Konavets"]
[Black "Rsnr"]
[Result "1-0"]
[WhiteElo "2758"]
[BlackElo "2625"]
[TimeControl "180+2"]
[EndTime "13:53:22 PST"]
[Termination "Konavets won by resignation"]

1. e4 {[%clk 0:03:01.9]} 1... c6 {[%clk 0:03:00.9]} 2. Nf3 {[%clk 0:03:03]} 2...
d5 {[%clk 0:03:02.8]} 3. Nc3 {[%clk 0:03:04.7]} 3... Bg4 {[%clk 0:03:03.7]} 4.
h3 {[%clk 0:03:05.2]} 4... Bh5 {[%clk 0:03:05.2]} 5. exd5 {[%clk 0:03:05.5]}
5... cxd5 {[%clk 0:03:07.1]} 6. Bb5+ {[%clk 0:03:06.7]} 6... Nc6 {[%clk
0:03:08.2]} 7. g4 {[%clk 0:03:08.4]} 7... Bg6 {[%clk 0:03:09.3]} 8. Ne5 {[%clk
0:03:10]} 8... Rc8 {[%clk 0:03:09.9]} 9. d4 {[%clk 0:03:11.6]} 9... e6 {[%clk
0:03:11.6]} 10. h4 {[%clk 0:03:10.9]} 10... f6 {[%clk 0:03:12.9]} 11. Nxg6
{[%clk 0:03:12.4]} 11... hxg6 {[%clk 0:03:14.8]} 12. Be3 {[%clk 0:03:13.5]}
12... Bd6 {[%clk 0:03:14.8]} 13. Qf3 {[%clk 0:03:13.4]} 13... Ne7 {[%clk
0:03:09.9]} 14. O-O-O {[%clk 0:03:14.5]} 14... Kf7 {[%clk 0:02:48.9]} 15. Kb1
{[%clk 0:03:14.8]} 15... Qa5 {[%clk 0:02:46.7]} 16. Bd2 {[%clk 0:03:12.8]} 16...
Nxd4 {[%clk 0:02:22.3]} 17. Qd3 {[%clk 0:03:13.3]} 17... Bc5 {[%clk 0:01:52]}
18. Bd7 {[%clk 0:03:09.4]} 18... Rcd8 {[%clk 0:01:22]} 19. Na4 {[%clk
0:02:26.1]} 19... Qc7 {[%clk 0:01:22.6]} 20. Nxc5 {[%clk 0:02:26.7]} 20... Qxc5
{[%clk 0:01:24.5]} 21. Ba4 {[%clk 0:02:28]} 21... b5 {[%clk 0:01:15.7]} 22. Ba5
{[%clk 0:01:48.6]} 22... Rb8 {[%clk 0:00:48.8]} 23. b4 {[%clk 0:01:09.2]} 23...
Qd6 {[%clk 0:00:28.3]} 24. Bb3 {[%clk 0:01:02.1]} 24... Ndc6 {[%clk 0:00:27.2]}
25. h5 {[%clk 0:01:01.2]} 25... gxh5 {[%clk 0:00:28.1]} 26. gxh5 {[%clk
0:01:01.9]} 26... Nxb4 {[%clk 0:00:23.8]} 27. Qe2 {[%clk 0:00:41.1]} 27... Nbc6
{[%clk 0:00:24.8]} 28. Bc3 {[%clk 0:00:41.8]} 28... b4 {[%clk 0:00:26]} 29. Bb2
{[%clk 0:00:43]} 29... Nf5 {[%clk 0:00:25.4]} 30. Qg4 {[%clk 0:00:41.4]} 30...
Nce7 {[%clk 0:00:26.5]} 31. Rdg1 {[%clk 0:00:38.1]} 31... a5 {[%clk 0:00:21.5]}
32. h6 {[%clk 0:00:29.1]} 32... g6 {[%clk 0:00:20.6]} 33. h7 {[%clk 0:00:30]}
33... Rbf8 {[%clk 0:00:19]} 34. Re1 {[%clk 0:00:28.3]} 34... Kg7 {[%clk
0:00:17.6]} 35. Qh3 {[%clk 0:00:28.9]} 35... e5 {[%clk 0:00:17.3]} 36. f4 {[%clk
0:00:29.4]} 36... d4 {[%clk 0:00:16.8]} 37. fxe5 {[%clk 0:00:29.9]} 37... fxe5
{[%clk 0:00:18.7]} 38. Qh2 {[%clk 0:00:30.5]} 38... Nc6 {[%clk 0:00:19.1]} 39.
Reg1 {[%clk 0:00:29.8]} 39... e4 {[%clk 0:00:19.1]} 40. Qxd6 {[%clk 0:00:29.4]}
40... Nxd6 {[%clk 0:00:21]} 41. Bd5 {[%clk 0:00:30.9]} 41... Ne5 {[%clk
0:00:15.9]} 42. Bxd4 {[%clk 0:00:31.7]} 42... Re8 {[%clk 0:00:17.6]} 43. Rg5
{[%clk 0:00:31.2]} 43... Nf5 {[%clk 0:00:19.1]} 44. Bb2 {[%clk 0:00:27.2]} 44...
Rxh7 {[%clk 0:00:20.2]} 45. Rhg1 {[%clk 0:00:27.7]} 45... Kf8 {[%clk 0:00:19.6]}
46. Bxe4 {[%clk 0:00:28.2]} 46... Nd6 {[%clk 0:00:15.4]} 47. Bxg6 {[%clk
0:00:20.1]} 47... Nxg6 {[%clk 0:00:13]} 48. Rxg6 {[%clk 0:00:22]} 48... Nc4
{[%clk 0:00:11.8]} 49. Bd4 {[%clk 0:00:20.5]} 49... Ke7 {[%clk 0:00:10.8]} 50.
Ra6 {[%clk 0:00:20.2]} 50... Rc8 {[%clk 0:00:07.1]} 51. Ra7+ {[%clk 0:00:20.7]}
1-0

[Event "*** Titled Tuesday Blitz"]
[Site "Chess.com"]
[Date "2018.01.02"]
[Round "4"]
[White "Ginger_GM"]
[Black "sergeikim"]
[Result "1/2-1/2"]
[WhiteElo "2474"]
[BlackElo "2374"]
[TimeControl "180+2"]
[EndTime "13:53:27 PST"]
[Termination "Game drawn by agreement"]

1. d4 {[%clk 0:03:01.9]} 1... Nf6 {[%clk 0:02:59.8]} 2. c4 {[%clk 0:03:02.2]}
2... g6 {[%clk 0:03:00.8]} 3. Nc3 {[%clk 0:03:02.7]} 3... Bg7 {[%clk 0:03:01.8]}
4. e4 {[%clk 0:03:03.6]} 4... d6 {[%clk 0:03:02.9]} 5. Be2 {[%clk 0:03:02.7]}
5... O-O {[%clk 0:03:03.2]} 6. Be3 {[%clk 0:03:03.1]} 6... Nbd7 {[%clk
0:02:53.6]} 7. Qd2 {[%clk 0:02:51.5]} 7... a6 {[%clk 0:02:51.4]} 8. g4 {[%clk
0:02:36]} 8... c5 {[%clk 0:02:38.8]} 9. d5 {[%clk 0:02:30.7]} 9... Ne5 {[%clk
0:02:14.5]} 10. h3 {[%clk 0:02:15.3]} 10... b5 {[%clk 0:02:15]} 11. cxb5 {[%clk
0:02:16.1]} 11... axb5 {[%clk 0:02:16]} 12. Bxb5 {[%clk 0:02:16.8]} 12... Ba6
{[%clk 0:02:13.3]} 13. Bxa6 {[%clk 0:02:12.9]} 13... Rxa6 {[%clk 0:02:13]} 14.
Nge2 {[%clk 0:01:34.4]} 14... Nc4 {[%clk 0:02:08.5]} 15. Qc1 {[%clk 0:01:35.3]}
15... Nxe3 {[%clk 0:02:08.6]} 16. Qxe3 {[%clk 0:01:37.1]} 16... Qb8 {[%clk
0:02:01.1]} 17. b3 {[%clk 0:01:31.6]} 17... Nd7 {[%clk 0:01:54.6]} 18. O-O
{[%clk 0:01:27]} 18... Qb4 {[%clk 0:01:46.8]} 19. Rab1 {[%clk 0:01:07.2]} 19...
Rfa8 {[%clk 0:01:37.5]} 20. Kg2 {[%clk 0:01:04.5]} 20... c4 {[%clk 0:01:23.6]}
21. f4 {[%clk 0:00:53]} 21... Nc5 {[%clk 0:01:14]} 22. e5 {[%clk 0:00:42.4]}
22... cxb3 {[%clk 0:01:14]} 23. axb3 {[%clk 0:00:43.3]} 23... Ra3 {[%clk
0:00:30.7]} 24. Nd4 {[%clk 0:00:38.6]} 24... Qb7 {[%clk 0:00:12.4]} 25. Nc6
{[%clk 0:00:33.6]} 25... Rxb3 {[%clk 0:00:10.8]} 26. Rxb3 {[%clk 0:00:33.9]}
26... Qxb3 {[%clk 0:00:09.1]} 27. Nd1 {[%clk 0:00:20.9]} 27... Ra2+ {[%clk
0:00:07.4]} 28. Kg1 {[%clk 0:00:21.2]} 28... Qc2 {[%clk 0:00:07.9]} 29. Nxe7+
{[%clk 0:00:21.3]} 29... Kh8 {[%clk 0:00:07.9]} 30. Qf2 {[%clk 0:00:21.9]} 30...
Qc4 {[%clk 0:00:07.5]} 31. Qf3 {[%clk 0:00:20.3]} 31... Qc2 {[%clk 0:00:08.3]}
32. Nf2 {[%clk 0:00:19.3]} 32... dxe5 {[%clk 0:00:07]} 33. d6 {[%clk 0:00:20.4]}
33... Nd7 {[%clk 0:00:07.1]} 34. f5 {[%clk 0:00:21.2]} 34... e4 {[%clk
0:00:07.2]} 35. Qxe4 {[%clk 0:00:22.4]} 35... Ne5 {[%clk 0:00:06.7]} 36. fxg6
{[%clk 0:00:21.2]} 36... hxg6 {[%clk 0:00:07.2]} 37. Nd5 {[%clk 0:00:21.4]}
37... Qxe4 {[%clk 0:00:06.8]} 38. Nxe4 {[%clk 0:00:21.6]} 38... Ra5 {[%clk
0:00:06.7]} 39. Ndf6 {[%clk 0:00:22.1]} 39... Ra2 {[%clk 0:00:05.4]} 40. d7
{[%clk 0:00:21.2]} 40... Bxf6 {[%clk 0:00:06.6]} 41. Nxf6 {[%clk 0:00:21.8]}
41... Rd2 {[%clk 0:00:07.6]} 42. Rf2 {[%clk 0:00:23.1]} 42... Rd1+ {[%clk
0:00:08.1]} 43. Kg2 {[%clk 0:00:24.3]} 43... Nxd7 {[%clk 0:00:08.2]} 44. Ne4
{[%clk 0:00:23.2]} 44... Kg7 {[%clk 0:00:09.2]} 45. Ng5 {[%clk 0:00:24]} 45...
Nf6 {[%clk 0:00:09.5]} 46. Kg3 {[%clk 0:00:22.9]} 46... Rd3+ {[%clk 0:00:10]}
47. Rf3 {[%clk 0:00:23.4]} 47... Rxf3+ {[%clk 0:00:10.5]} 48. Kxf3 {[%clk
0:00:24.1]} 48... Nd5 {[%clk 0:00:11.4]} 49. Ke4 {[%clk 0:00:23.3]} 49... Nc3+
{[%clk 0:00:09.9]} 1/2-1/2

[Event "*** Titled Tuesday Blitz"]
[Site "Chess.com"]
[Date "2018.01.02"]
[Round "4"]
[White "julinha97"]
[Black "walkingcreep"]
[Result "0-1"]
[WhiteElo "2219"]
[BlackElo "2430"]
[TimeControl "180+2"]
[EndTime "13:53:36 PST"]
[Termination "walkingcreep won by checkmate"]

1. e4 {[%clk 0:03:01.9]} 1... d6 {[%clk 0:02:57.5]} 2. d4 {[%clk 0:03:01.9]}
2... Nf6 {[%clk 0:02:58.3]} 3. Nc3 {[%clk 0:03:02.4]} 3... Nbd7 {[%clk
0:02:59.6]} 4. f4 {[%clk 0:03:01.6]} 4... e5 {[%clk 0:03:00.7]} 5. Nf3 {[%clk
0:03:02.8]} 5... exd4 {[%clk 0:03:02]} 6. Nxd4 {[%clk 0:03:03.8]} 6... g6 {[%clk
0:03:01.3]} 7. Bd3 {[%clk 0:03:02.5]} 7... Bg7 {[%clk 0:03:01.7]} 8. O-O {[%clk
0:03:03.5]} 8... O-O {[%clk 0:03:01.6]} 9. Nf3 {[%clk 0:02:59]} 9... Nc5 {[%clk
0:02:40.4]} 10. Be3 {[%clk 0:02:55.4]} 10... Nxd3 {[%clk 0:02:27]} 11. cxd3
{[%clk 0:02:50.9]} 11... d5 {[%clk 0:02:15.9]} 12. e5 {[%clk 0:02:37.8]} 12...
Ng4 {[%clk 0:02:16.3]} 13. Bc5 {[%clk 0:02:37.2]} 13... Re8 {[%clk 0:02:14.8]}
14. h3 {[%clk 0:02:37.2]} 14... Nh6 {[%clk 0:02:15.7]} 15. Bf2 {[%clk 0:02:15]}
15... Nf5 {[%clk 0:01:51.3]} 16. d4 {[%clk 0:02:10.7]} 16... f6 {[%clk 0:01:43]}
17. Qb3 {[%clk 0:02:05]} 17... c6 {[%clk 0:01:42.7]} 18. Qc2 {[%clk 0:01:20.5]}
18... Nh6 {[%clk 0:01:28.7]} 19. b4 {[%clk 0:01:18]} 19... Bf5 {[%clk
0:01:27.4]} 20. Qa4 {[%clk 0:01:17.2]} 20... b5 {[%clk 0:01:26.1]} 21. Qb3
{[%clk 0:01:15.2]} 21... Bd3 {[%clk 0:01:18.8]} 22. Rfe1 {[%clk 0:01:15.9]}
22... Nf5 {[%clk 0:01:06.4]} 23. a4 {[%clk 0:01:11.4]} 23... a6 {[%clk
0:01:02.9]} 24. axb5 {[%clk 0:01:10.5]} 24... axb5 {[%clk 0:01:02.1]} 25. Nd2
{[%clk 0:00:59.1]} 25... Bh6 {[%clk 0:00:40.5]} 26. g3 {[%clk 0:00:48.7]} 26...
Rxa1 {[%clk 0:00:37.4]} 27. Rxa1 {[%clk 0:00:47.4]} 27... Bc4 {[%clk 0:00:38.6]}
28. Qc2 {[%clk 0:00:42.4]} 28... fxe5 {[%clk 0:00:35.7]} 29. fxe5 {[%clk
0:00:32.9]} 29... Qg5 {[%clk 0:00:28.1]} 30. Nf3 {[%clk 0:00:33.9]} 30... Qe7
{[%clk 0:00:20.1]} 31. g4 {[%clk 0:00:17.2]} 31... Ne3 {[%clk 0:00:20.7]} 32.
Qb2 {[%clk 0:00:09.4]} 32... Bd3 {[%clk 0:00:17.9]} 33. Re1 {[%clk 0:00:09.2]}
33... Nc4 {[%clk 0:00:18.6]} 34. Qa2 {[%clk 0:00:09]} 34... Qxb4 {[%clk
0:00:18.8]} 35. Nd1 {[%clk 0:00:08.2]} 35... Be4 {[%clk 0:00:18.3]} 36. g5
{[%clk 0:00:09.1]} 36... Bxf3 {[%clk 0:00:17.7]} 37. gxh6 {[%clk 0:00:09.8]}
37... Be4 {[%clk 0:00:18.9]} 38. Qa7 {[%clk 0:00:10.3]} 38... Qf8 {[%clk
0:00:16.9]} 39. Qd7 {[%clk 0:00:08.8]} 39... Re7 {[%clk 0:00:09.8]} 40. Qxc6
{[%clk 0:00:09.4]} 40... Qf3 {[%clk 0:00:09.3]} 41. Qc8+ {[%clk 0:00:09.9]}
41... Kf7 {[%clk 0:00:09]} 42. Qg4 {[%clk 0:00:11.4]} 42... Qh1# {[%clk
0:00:03]} 0-1

[Event "*** Titled Tuesday Blitz"]
[Site "Chess.com"]
[Date "2018.01.02"]
[Round "4"]
[White "ajkom197"]
[Black "pKiLz5Rn9b"]
[Result "0-1"]
[WhiteElo "2331"]
[BlackElo "2614"]
[TimeControl "180+2"]
[EndTime "13:53:38 PST"]
[Termination "pKiLz5Rn9b won by resignation"]

1. d4 {[%clk 0:02:57.9]} 1... Nf6 {[%clk 0:03:00.4]} 2. Bf4 {[%clk 0:02:58.8]}
2... e6 {[%clk 0:03:01.7]} 3. e3 {[%clk 0:03:00.1]} 3... c5 {[%clk 0:03:03]} 4.
c3 {[%clk 0:03:01.1]} 4... Nc6 {[%clk 0:02:57.5]} 5. Nf3 {[%clk 0:03:01.4]} 5...
d5 {[%clk 0:02:56.9]} 6. Bd3 {[%clk 0:03:00.4]} 6... Bd6 {[%clk 0:02:46.2]} 7.
Bg3 {[%clk 0:03:00.7]} 7... Ne4 {[%clk 0:02:43.4]} 8. Nbd2 {[%clk 0:02:58.7]}
8... f5 {[%clk 0:02:42.9]} 9. Bb5 {[%clk 0:02:36.7]} 9... O-O {[%clk 0:02:38.3]}
10. Bxc6 {[%clk 0:02:35.1]} 10... bxc6 {[%clk 0:02:37.9]} 11. Bxd6 {[%clk
0:02:36.6]} 11... Qxd6 {[%clk 0:02:36.7]} 12. Ne5 {[%clk 0:02:38.5]} 12... Ba6
{[%clk 0:02:33.7]} 13. f3 {[%clk 0:02:37.2]} 13... cxd4 {[%clk 0:02:33.4]} 14.
exd4 {[%clk 0:02:32.7]} 14... c5 {[%clk 0:02:19.5]} 15. fxe4 {[%clk 0:02:13.9]}
15... cxd4 {[%clk 0:02:18.6]} 16. cxd4 {[%clk 0:02:11.1]} 16... fxe4 {[%clk
0:02:17.9]} 17. Qa4 {[%clk 0:01:47.3]} 17... Rac8 {[%clk 0:01:31.5]} 18. Nef3
{[%clk 0:01:09.4]} 18... exf3 {[%clk 0:01:29.1]} 19. Nxf3 {[%clk 0:01:10.1]}
19... Rc4 {[%clk 0:01:23.6]} 20. Qb3 {[%clk 0:01:04.3]} 20... Rb4 {[%clk
0:01:18.7]} 21. Qa3 {[%clk 0:00:50.7]} 21... Qb6 {[%clk 0:01:17.9]} 22. O-O-O
{[%clk 0:00:47.9]} 22... Rb8 {[%clk 0:01:15.7]} 23. Rd2 {[%clk 0:00:41.2]} 23...
Qb5 {[%clk 0:01:11.1]} 24. Re1 {[%clk 0:00:36.3]} 24... Ra4 {[%clk 0:01:09.7]}
25. Qe3 {[%clk 0:00:30.9]} 25... Bc8 {[%clk 0:00:55.1]} 26. b3 {[%clk
0:00:22.3]} 26... Ra6 {[%clk 0:00:52.1]} 27. Ng5 {[%clk 0:00:18.8]} 27... Bd7
{[%clk 0:00:44.7]} 28. Qf4 {[%clk 0:00:15.6]} 28... Rf8 {[%clk 0:00:42.2]} 29.
Qh4 {[%clk 0:00:16.5]} 29... h6 {[%clk 0:00:43.3]} 30. Nf3 {[%clk 0:00:17.5]}
30... Qb4 {[%clk 0:00:42.2]} 31. Ree2 {[%clk 0:00:17.1]} 31... Qc3+ {[%clk
0:00:37.9]} 32. Rc2 {[%clk 0:00:18.2]} 32... Qa1+ {[%clk 0:00:38.1]} 33. Kd2
{[%clk 0:00:19.8]} 33... Bb5 {[%clk 0:00:36.8]} 34. Re1 {[%clk 0:00:17.8]} 34...
Qxa2 {[%clk 0:00:30.4]} 35. Rxa2 {[%clk 0:00:18.4]} 35... Rxa2+ {[%clk
0:00:32.3]} 36. Ke3 {[%clk 0:00:19.9]} 36... Rb2 {[%clk 0:00:33.3]} 37. Qe7
{[%clk 0:00:17.8]} 37... Rxb3+ {[%clk 0:00:34.6]} 38. Kf2 {[%clk 0:00:19.1]}
38... Re8 {[%clk 0:00:35.9]} 39. Qd6 {[%clk 0:00:19.5]} 39... Bc4 {[%clk
0:00:23.3]} 40. Rxe6 {[%clk 0:00:19.6]} 40... Rb2+ {[%clk 0:00:24.8]} 41. Kg3
{[%clk 0:00:20.4]} 41... Rf8 {[%clk 0:00:26.3]} 42. Qe5 {[%clk 0:00:19.1]} 42...
Bf1 {[%clk 0:00:24.5]} 43. Re8 {[%clk 0:00:10.9]} 43... Rxg2+ {[%clk 0:00:22.8]}
44. Kh4 {[%clk 0:00:12.5]} 44... Rxe8 {[%clk 0:00:19.2]} 45. Qxe8+ {[%clk
0:00:14.4]} 45... Kh7 {[%clk 0:00:20.9]} 46. Qe5 {[%clk 0:00:14.6]} 46... Bd3
{[%clk 0:00:09.9]} 47. h3 {[%clk 0:00:13.9]} 47... g5+ {[%clk 0:00:09.6]} 48.
Nxg5+ {[%clk 0:00:15]} 48... hxg5+ {[%clk 0:00:10.9]} 0-1

[Event "*** Titled Tuesday Blitz"]
[Site "Chess.com"]
[Date "2018.01.02"]
[Round "4"]
[White "DiogenesSinopeus"]
[Black "Superfelix"]
[Result "0-1"]
[WhiteElo "2399"]
[BlackElo "2302"]
[TimeControl "180+2"]
[EndTime "13:53:39 PST"]
[Termination "Superfelix won by resignation"]

1. d4 {[%clk 0:03:01.9]} 1... g6 {[%clk 0:02:59.2]} 2. c4 {[%clk 0:03:02.8]}
2... Bg7 {[%clk 0:03:00.6]} 3. Nc3 {[%clk 0:03:04.4]} 3... d6 {[%clk 0:03:02.1]}
4. Nf3 {[%clk 0:03:05.3]} 4... Nc6 {[%clk 0:03:03.4]} 5. d5 {[%clk 0:03:01.2]}
5... Nb8 {[%clk 0:03:04]} 6. e4 {[%clk 0:02:51.7]} 6... Nd7 {[%clk 0:02:59]} 7.
Nd4 {[%clk 0:02:47.2]} 7... c5 {[%clk 0:02:49.1]} 8. dxc6 {[%clk 0:02:31.4]}
8... bxc6 {[%clk 0:02:49.8]} 9. Be2 {[%clk 0:02:04.9]} 9... Qb6 {[%clk
0:02:45.8]} 10. Nb3 {[%clk 0:01:58.1]} 10... Ngf6 {[%clk 0:02:46.4]} 11. Be3
{[%clk 0:01:57.4]} 11... Qc7 {[%clk 0:02:47.3]} 12. f3 {[%clk 0:01:55.2]} 12...
O-O {[%clk 0:02:47.9]} 13. O-O {[%clk 0:01:56.5]} 13... a5 {[%clk 0:02:48.3]}
14. Na4 {[%clk 0:01:50.8]} 14... Rb8 {[%clk 0:02:44.1]} 15. Nd4 {[%clk
0:01:47.2]} 15... Ba6 {[%clk 0:02:39.5]} 16. b3 {[%clk 0:01:48.1]} 16... Rfc8
{[%clk 0:02:34.7]} 17. Rc1 {[%clk 0:01:48.7]} 17... Qd8 {[%clk 0:02:31.8]} 18.
Qd2 {[%clk 0:01:43.7]} 18... Rb4 {[%clk 0:02:29.1]} 19. Rfd1 {[%clk 0:01:39.1]}
19... Rxa4 {[%clk 0:02:29.8]} 20. bxa4 {[%clk 0:01:39]} 20... Nc5 {[%clk
0:02:31.4]} 21. Qc2 {[%clk 0:01:35.2]} 21... Nfd7 {[%clk 0:02:31.8]} 22. Bf1
{[%clk 0:01:22.9]} 22... h5 {[%clk 0:02:32.6]} 23. Ne2 {[%clk 0:01:22.5]} 23...
Qc7 {[%clk 0:02:27.9]} 24. Bd4 {[%clk 0:01:23.5]} 24... Ne5 {[%clk 0:02:27.6]}
25. Nf4 {[%clk 0:01:16.5]} 25... Nxf3+ {[%clk 0:02:22.1]} 26. gxf3 {[%clk
0:01:14.6]} 26... Bxd4+ {[%clk 0:02:22]} 27. Rxd4 {[%clk 0:01:12.8]} 27... e5
{[%clk 0:02:23.6]} 28. Rdd1 {[%clk 0:01:07.5]} 28... exf4 {[%clk 0:02:24.3]} 29.
Qd2 {[%clk 0:01:09.1]} 29... Rd8 {[%clk 0:02:09.3]} 30. Qxf4 {[%clk 0:01:08.5]}
30... Ne6 {[%clk 0:02:09.5]} 31. Qf6 {[%clk 0:01:07.4]} 31... c5 {[%clk
0:02:03.8]} 32. Bh3 {[%clk 0:01:08]} 32... Nd4 {[%clk 0:02:03]} 33. Kh1 {[%clk
0:01:03.8]} 33... Rf8 {[%clk 0:01:51.3]} 34. Rg1 {[%clk 0:01:04.5]} 34... Kh7
{[%clk 0:01:43.5]} 35. Rg5 {[%clk 0:01:02.1]} 35... Qd8 {[%clk 0:01:41.4]} 36.
Qxd8 {[%clk 0:00:31.9]} 36... Rxd8 {[%clk 0:01:43.3]} 37. Rd5 {[%clk 0:00:19.1]}
37... Bb7 {[%clk 0:01:31.9]} 38. Rxd4 {[%clk 0:00:18.5]} 38... cxd4 {[%clk
0:01:33.8]} 39. Rd1 {[%clk 0:00:20.2]} 39... f5 {[%clk 0:01:35.4]} 40. Rxd4
{[%clk 0:00:19.2]} 40... fxe4 {[%clk 0:01:36.6]} 41. fxe4 {[%clk 0:00:21.1]}
41... Re8 {[%clk 0:01:36.5]} 42. Bg2 {[%clk 0:00:22.4]} 42... Re6 {[%clk
0:01:28.9]} 43. Kg1 {[%clk 0:00:23]} 43... Kh6 {[%clk 0:01:29.1]} 44. Kf2 {[%clk
0:00:24.2]} 44... g5 {[%clk 0:01:30.5]} 45. Ke3 {[%clk 0:00:25.3]} 45... g4
{[%clk 0:01:31]} 46. Rd2 {[%clk 0:00:19.1]} 46... h4 {[%clk 0:01:30.5]} 47. Rb2
{[%clk 0:00:20.2]} 47... Bc6 {[%clk 0:01:30.5]} 48. Rb6 {[%clk 0:00:20.5]} 48...
Bd7 {[%clk 0:01:30]} 49. Kd4 {[%clk 0:00:16.1]} 49... Rf6 {[%clk 0:01:28.2]} 50.
c5 {[%clk 0:00:15.2]} 50... h3 {[%clk 0:01:25.4]} 51. Bh1 {[%clk 0:00:13]} 51...
dxc5+ {[%clk 0:01:11.2]} 52. Kxc5 {[%clk 0:00:14.2]} 52... Rxb6 {[%clk
0:01:02.5]} 53. Kxb6 {[%clk 0:00:15.5]} 53... Bxa4 {[%clk 0:01:03.4]} 54. Kxa5
{[%clk 0:00:15.9]} 54... Bd1 {[%clk 0:01:04.4]} 55. e5 {[%clk 0:00:09.7]} 55...
Bf3 {[%clk 0:01:04.7]} 56. e6 {[%clk 0:00:08.8]} 56... Bxh1 {[%clk 0:01:01.5]}
57. Kb6 {[%clk 0:00:10.3]} 57... Kg7 {[%clk 0:01:01.4]} 58. Kc7 {[%clk
0:00:11.6]} 58... Kf6 {[%clk 0:00:57.9]} 59. Kd6 {[%clk 0:00:12.2]} 59... Bc6
{[%clk 0:00:53.5]} 60. Kxc6 {[%clk 0:00:11.3]} 60... Kxe6 {[%clk 0:00:54.4]} 61.
a4 {[%clk 0:00:12.8]} 61... g3 {[%clk 0:00:55.6]} 0-1